lending/lending_fUSD_20241214
["ID","MTS","AMOUNT","RATE_DAILY","PERIOD"]
[345296170,1734141145697,-500.0,0.00021249,3]
[345296171,1734141145707,-1465.46,0.00021249,3]
[345296172,1734141145716,-500.0,0.00021249,3]
[345296173,1734141145726,-116.67564797,0.00021249,3]
[345296174,1734141147362,23479.04780486,0.00014281,7]
[345296175,1734141666074,1018.0,0.00021,120]
[345296177,1734141897752,152.58,0.00010137,2]
[345296178,1734141939138,-150.0,0.0001428,2]
[345296179,1734141939160,-5554.17839354,0.00014281,7]
[345296180,1734142040096,-150.0,0.0001428,2]
[345296181,1734142040119,-300.0,0.0001428,2]
[345296182,1734142040141,-4567.43421727,0.00014281,7]
[345296183,1734142045101,-151.19594064,0.00014281,7]
[345296184,1734142146105,-300.0,0.0001428,2]
[345296185,1734142146125,-150.0,0.0001428,2]
[345296186,1734142146147,-134955.9238,0.00014281,7]
[345296187,1734142146194,-43326.89372115,0.00014281,7]
[345296188,1734142149129,-9974.62064275,0.00014281,7]
[345296189,1734142149218,-3247.96469565,0.00014281,7]
[345296190,1734142157082,-150.0,0.00015408,2]
[345296191,1734142157104,-207.95833773,0.0001554,2]
[345296192,1734142157126,-304.0,0.0001564,2]
[345296193,1734142157147,-207.95833769,0.00016163,2]
[345296194,1734142157167,-337.79,0.00016551,2]
[345296195,1734142157187,-207.95833769,0.00016786,2]
[345296196,1734142163084,-207.95833769,0.00017409,2]
[345296197,1734142163105,-500.0,0.00017414,2]
[345296198,1734142163126,-1133.88215651,0.00017728,2]
[345296200,1734142232713,-500.0,0.00017414,2]
[345296202,1734142232723,-16193.83784349,0.00017728,2]
[345296204,1734142232732,-175.17,0.00017883,2]
[345296206,1734142232741,-690.51307753,0.00017896,2]
[345296208,1734142232753,-14.30692247,0.00017896,2]
[345296210,1734142232762,-179.9,0.00017901,2]
[345296211,1734142232772,-250.0,0.00017984,2]
[345296212,1734142232781,-1000.0,0.00018002,2]
[345296213,1734142232791,-150.0,0.00018005,2]
[345296214,1734142232801,-200.0,0.0001803,2]
[345296215,1734142232810,-163.88,0.00018067,2]
[345296216,1734142232822,-250.0,0.00018617,2]
[345296217,1734142232831,-250.0,0.00018627,2]
[345296218,1734142232841,-165.83,0.00018812,2]
[345296219,1734142232850,-337.79,0.00018815,2]
[345296220,1734142232859,-151.73,0.0001924,2]
[345296221,1734142232869,-151.73,0.00019247,2]
[345296222,1734142232879,-151.73,0.00019253,2]
[345296223,1734142232888,-151.73,0.0001926,2]
[345296224,1734142232898,-151.73,0.00019266,2]
[345296225,1734142232907,-151.73,0.00019272,2]
[345296227,1734142232916,-151.73,0.00019279,2]
[345296228,1734142232925,-151.73,0.00019285,2]
[345296230,1734142232934,-151.73,0.00019292,2]
[345296232,1734142232944,-151.73,0.00019298,2]
[345296234,1734142232953,-151.73,0.00019305,2]
[345296236,1734142232962,-151.73,0.00019311,2]
[345296238,1734142232971,-151.73,0.00019317,2]
[345296240,1734142232980,-151.73,0.00019324,2]
[345296242,1734142232989,-151.73,0.0001933,2]
[345296244,1734142232999,-151.73,0.00019337,2]
[345296246,1734142233008,-1492.43,0.00019544,2]
[345296248,1734142233017,-500.0,0.00019606,2]
[345296249,1734142233027,-283.12,0.00019672,2]
[345296250,1734142233036,-164.01,0.00019737,30]
[345296251,1734142233047,-704.82,0.00020133,2]
[345296252,1734142233056,-14423.09,0.00020169,2]
[345296253,1734142233066,-361.298,0.0002019,2]
[345296254,1734142233078,-7500.0,0.00020223,2]
[345296255,1734142233090,-1807.03960914,0.00020224,2]
[345296256,1734142233523,-2434.91110072,0.00020224,2]
[345296257,1734142233535,-19658.04929014,0.00020224,2]
[345296258,1734142233545,-1000.0,0.00020252,2]
[345296259,1734142233554,-364.22,0.000204,2]
[345296260,1734142233567,-1492.43,0.00020521,2]
[345296261,1734142233578,-175.17,0.00020529,2]
[345296262,1734142233587,-5025.0,0.00020548,10]
[345296263,1734142233597,-500.0,0.00020712,2]
[345296264,1734142233607,-500.0,0.00020712,2]
[345296265,1734142233616,-1502.45166321,0.00020894,2]
[345296266,1734142233626,-3899.354,0.00020898,2]
[345296267,1734142233636,-1171.596,0.00020898,2]
[345296268,1734142233646,-150.945,0.00020898,2]
[345296269,1734142233655,-2172.80486116,0.00020898,2]
[345296270,1734142233667,-11607.11113884,0.00020898,2]
[345296271,1734142233678,-332.08986334,0.000209,2]
[345296272,1734142233688,-2428.2413,0.000209,2]
[345296273,1734142233697,-726.15656834,0.000209,2]
[345296274,1734142233707,-1502.45166321,0.00020905,2]
[345296275,1734142233716,-19338.46717466,0.00020905,2]
[345296276,1734142233726,-332.08986334,0.00020907,2]
[345296277,1734142233735,-332.08986334,0.00020909,2]
[345296278,1734142233744,-19338.46717466,0.00020911,2]
[345296279,1734142233754,-327.43363756,0.00020914,2]
[345296280,1734142233764,-1502.45166321,0.00020916,2]
[345296281,1734142233774,-1502.45166321,0.00020919,2]
[345296282,1734142233784,-327.43363756,0.00020919,2]
[345296283,1734142233794,-327.43363756,0.00020923,2]
[345296284,1734142233803,-332.08986334,0.00020923,2]
[345296285,1734142233813,-19338.46717466,0.00020927,2]
[345296286,1734142233824,-726.1565683,0.00020927,2]
[345296287,1734142233834,-19338.46717466,0.00020931,2]
[345296288,1734142233844,-13769.97037021,0.00020935,2]
[345296289,1734142233860,-5568.49680445,0.00020935,2]
[345296290,1734142233870,-1502.45166321,0.00020937,2]
[345296291,1734142233880,-1502.45166321,0.00020944,2]
[345296292,1734142233889,-327.43363756,0.00020946,2]
[345296293,1734142233898,-19338.46717466,0.00020947,2]
[345296294,1734142233908,-332.08986334,0.00020948,2]
[345296295,1734142233918,-327.43363756,0.0002095,2]
[345296296,1734142233928,-572.10793175,0.00020955,2]
[345296297,1734142233940,-154.04863655,0.00020955,2]
[345296298,1734142233949,-726.1565683,0.00020982,2]
[345296299,1734142233960,-7500.0,0.00020999,2]
[345296300,1734142233969,-1000.0,0.00021,2]
[345296301,1734142233979,-36852.2882,0.00021,2]
[345296302,1734142233989,-11436.97984316,0.00021,2]
[345296306,1734142238405,-2351.2886017,0.00021,2]
[345296307,1734142238417,-2501.734259,0.00021,2]
[345296309,1734142238643,-16278.82119614,0.00021,2]
[345296311,1734142238652,-33852.5568,0.00021,2]
[345296312,1734142238661,-32685.36852,0.00021,2]
[345296313,1734142238671,-36852.185,0.00021,2]
[345296314,1734142238680,-35286.8851,0.00021,2]
[345296315,1734142238690,-35286.8518,0.00021,2]
[345296316,1734142238917,-36582.82851,0.00021,2]
[345296317,1734142238926,-35893.8516,0.00021,2]
[345296318,1734142238935,-35239.8526,0.00021,2]
[345296319,1734142238944,-1429.1,0.00021,3]
[345296320,1734142238953,-1000.0,0.00021,10]
[345296321,1734142238962,-726.1565683,0.00021009,2]
[345296322,1734142238971,-726.1565683,0.00021037,2]
[345296323,1734142238981,-2249.23297092,0.00021045,2]
[345296324,1734142238990,-726.1565683,0.00021064,2]
[345296325,1734142238999,-503.52594441,0.00021073,2]
[345296326,1734142239008,-337.79,0.00021079,2]
[345296327,1734142239017,-726.1565683,0.00021091,2]
[345296328,1734142239026,-7500.0,0.00021094,2]
[345296329,1734142239035,-598.0,0.00021095,2]
[345296330,1734142239044,-644.47558791,0.00021095,3]
[345296331,1734142239054,-414.79137753,0.00021095,3]
[345296332,1734142239063,-500.0,0.00021095,3]
[345296333,1734142239075,-500.0,0.00021095,3]
[345296334,1734142239088,-500.0,0.00021095,3]
[345296335,1734142239097,-500.0,0.00021095,3]
[345296336,1734142239106,-500.0,0.00021095,3]
[345296337,1734142239116,-500.0,0.00021095,3]
[345296338,1734142239126,-874.03,0.00021095,3]
[345296339,1734142239135,-874.03,0.00021095,3]
[345296340,1734142239144,-500.0,0.00021095,3]
[345296341,1734142239155,-500.0,0.00021095,3]
[345296342,1734142239164,-500.0,0.00021095,3]
[345296343,1734142239173,-500.0,0.00021095,3]
[345296344,1734142239183,-500.0,0.00021095,3]
[345296345,1734142239193,-500.0,0.00021095,3]
[345296346,1734142239202,-500.0,0.00021095,3]
[345296347,1734142239211,-500.0,0.00021095,3]
[345296348,1734142239221,-500.0,0.00021095,3]
[345296349,1734142239231,-500.0,0.00021095,3]
[345296350,1734142239241,-526.56,0.00021095,3]
[345296351,1734142239250,-500.0,0.00021095,3]
[345296352,1734142239259,-526.56,0.00021095,3]
[345296353,1734142239268,-500.0,0.00021095,3]
[345296354,1734142239278,-501.06048384,0.00021095,3]
[345296355,1734142239290,-500.0,0.00021095,3]
[345296356,1734142239299,-500.0,0.00021095,3]
[345296357,1734142239308,-500.0,0.00021095,3]
[345296358,1734142239319,-500.0,0.00021095,3]
[345296359,1734142239328,-503.99754015,0.00021095,3]
[345296360,1734142239337,-500.0,0.00021095,3]
[345296361,1734142239347,-500.0,0.00021095,3]
[345296362,1734142239357,-500.0,0.00021095,3]
[345296363,1734142239367,-501.32877819,0.00021095,3]
[345296364,1734142239376,-500.0,0.00021095,3]
[345296365,1734142239385,-500.0,0.00021095,3]
[345296366,1734142239394,-500.0,0.00021095,3]
[345296367,1734142239403,-536.58,0.00021095,3]
[345296368,1734142239412,-500.0,0.00021095,3]
[345296369,1734142239421,-500.0,0.00021095,3]
[345296370,1734142239430,-504.30685281,0.00021095,3]
[345296371,1734142239439,-813.11,0.00021095,3]
[345296372,1734142239449,-500.0,0.00021095,3]
[345296373,1734142239460,-813.11,0.00021095,3]
[345296374,1734142239469,-500.0,0.00021095,3]
[345296375,1734142239478,-500.0,0.00021095,3]
[345296376,1734142239487,-500.0,0.00021095,3]
[345296377,1734142239496,-500.0,0.00021095,3]
[345296378,1734142239505,-500.0,0.00021095,3]
[345296379,1734142239515,-500.0,0.00021095,3]
[345296380,1734142239524,-500.0,0.00021095,3]
[345296381,1734142239533,-500.0,0.00021095,3]
[345296382,1734142239542,-500.0,0.00021095,3]
[345296383,1734142239551,-500.0,0.00021095,3]
[345296384,1734142239561,-565.1125558,0.00021095,3]
[345296385,1734142239573,-500.0,0.00021095,3]
[345296386,1734142239583,-500.0,0.00021095,3]
[345296387,1734142239591,-500.0,0.00021095,3]
[345296388,1734142239600,-500.0,0.00021095,3]
[345296389,1734142239609,-500.0,0.00021095,3]
[345296390,1734142239618,-500.0,0.00021095,3]
[345296391,1734142239628,-500.0,0.00021095,3]
[345296392,1734142239637,-500.0,0.00021095,3]
[345296393,1734142239647,-292.3922284,0.00021095,3]
[345296394,1734142239656,-1648.8,0.00021095,3]
[345296395,1734142239666,-1648.8,0.00021095,3]
[345296396,1734142239675,-560.95,0.00021095,3]
[345296397,1734142239685,-711.29,0.00021095,3]
[345296398,1734142239694,-711.29,0.00021095,3]
[345296399,1734142239703,-560.95,0.00021095,3]
[345296400,1734142239712,-500.0,0.00021095,3]
[345296401,1734142239721,-500.0,0.00021095,3]
[345296402,1734142239731,-616.06,0.00021095,3]
[345296403,1734142239740,-616.06,0.00021095,3]
[345296404,1734142239749,-500.0,0.00021095,3]
[345296405,1734142239757,-500.0,0.00021095,3]
[345296406,1734142239766,-500.0,0.00021095,3]
[345296407,1734142239775,-500.0,0.00021095,3]
[345296408,1734142239785,-877.15,0.00021095,3]
[345296409,1734142239794,-877.15,0.00021095,3]
[345296410,1734142239802,-500.0,0.00021095,3]
[345296411,1734142239812,-500.0,0.00021095,3]
[345296412,1734142239824,-500.0,0.00021095,3]
[345296413,1734142239833,-157.31044536,0.00021095,3]
[345296414,1734142239842,-500.0,0.00021095,3]
[345296415,1734142239851,-500.0,0.00021095,3]
[345296416,1734142239860,-386.42397954,0.00021095,3]
[345296417,1734142239869,-504.49668037,0.00021095,3]
[345296418,1734142239878,-500.0,0.00021095,3]
[345296419,1734142239887,-500.0,0.00021095,3]
[345296420,1734142239896,-631.83,0.00021095,3]
[345296421,1734142239905,-631.83,0.00021095,3]
[345296422,1734142239914,-401.53938275,0.00021095,3]
[345296423,1734142239923,-500.0,0.00021095,3]
[345296424,1734142239932,-500.0,0.00021095,3]
[345296425,1734142239942,-376.97824553,0.00021095,3]
[345296426,1734142239951,-500.0,0.00021095,3]
[345296427,1734142239960,-500.0,0.00021095,3]
[345296428,1734142239969,-500.0,0.00021095,3]
[345296429,1734142239979,-510.35072042,0.00021095,3]
[345296430,1734142239988,-500.0,0.00021095,3]
[345296431,1734142239999,-533.90675805,0.00021095,3]
[345296432,1734142240008,-500.0,0.00021095,3]
[345296433,1734142240018,-500.0,0.00021095,3]
[345296434,1734142240027,-500.0,0.00021095,3]
[345296435,1734142240037,-500.0,0.00021095,3]
[345296436,1734142240047,-500.0,0.00021095,3]
[345296437,1734142240058,-500.0,0.00021095,3]
[345296438,1734142240069,-500.0,0.00021095,3]
[345296439,1734142240080,-500.0,0.00021095,3]
[345296440,1734142240090,-500.0,0.00021095,3]
[345296441,1734142240100,-500.0,0.00021095,3]
[345296442,1734142240110,-500.0,0.00021095,3]
[345296443,1734142240119,-500.0,0.00021095,3]
[345296444,1734142240132,-500.0,0.00021095,3]
[345296445,1734142240142,-500.0,0.00021095,3]
[345296446,1734142240151,-500.0,0.00021095,3]
[345296447,1734142240163,-593.08062349,0.00021095,3]
[345296448,1734142240172,-500.0,0.00021095,3]
[345296449,1734142240181,-500.0,0.00021095,3]
[345296450,1734142240191,-500.0,0.00021095,3]
[345296451,1734142240200,-502.62824825,0.00021095,3]
[345296452,1734142240209,-198.85945785,0.00021095,3]
[345296453,1734142240219,-500.0,0.00021095,3]
[345296454,1734142240228,-586.19,0.00021095,3]
[345296455,1734142240238,-586.19,0.00021095,3]
[345296456,1734142240248,-500.0,0.00021095,3]
[345296457,1734142240257,-500.0,0.00021095,3]
[345296458,1734142240267,-500.0,0.00021095,3]
[345296459,1734142240276,-502.18827826,0.00021095,3]
[345296460,1734142240286,-500.0,0.00021095,3]
[345296461,1734142240295,-500.0,0.00021095,3]
[345296462,1734142240305,-500.0,0.00021095,3]
[345296463,1734142240314,-500.0,0.00021095,3]
[345296464,1734142240325,-500.0,0.00021095,3]
[345296465,1734142240334,-500.0,0.00021095,3]
[345296466,1734142240344,-500.0,0.00021095,3]
[345296467,1734142240353,-500.0,0.00021095,3]
[345296468,1734142240362,-500.0,0.00021095,3]
[345296469,1734142240371,-500.0,0.00021095,3]
[345296470,1734142240380,-500.0,0.00021095,3]
[345296471,1734142240389,-501.55776233,0.00021095,3]
[345296472,1734142240398,-500.0,0.00021095,3]
[345296473,1734142240407,-500.0,0.00021095,3]
[345296474,1734142240416,-500.0,0.00021095,3]
[345296475,1734142240426,-500.0,0.00021095,3]
[345296476,1734142240435,-500.0,0.00021095,3]
[345296477,1734142240444,-500.0,0.00021095,3]
[345296478,1734142240453,-500.0,0.00021095,3]
[345296479,1734142240462,-500.0,0.00021095,3]
[345296480,1734142240471,-500.0,0.00021095,3]
[345296481,1734142240480,-500.0,0.00021095,3]
[345296482,1734142240489,-359.17513078,0.00021095,3]
[345296483,1734142240499,-500.0,0.00021095,3]
[345296484,1734142240508,-500.0,0.00021095,3]
[345296485,1734142240517,-500.0,0.00021095,3]
[345296486,1734142240526,-500.0,0.00021095,3]
[345296487,1734142240535,-500.0,0.00021095,3]
[345296488,1734142240544,-567.19196918,0.00021095,3]
[345296489,1734142240554,-500.0,0.00021095,3]
[345296490,1734142240563,-676.61,0.00021095,3]
[345296491,1734142240576,-500.0,0.00021095,3]
[345296492,1734142240585,-676.61,0.00021095,3]
[345296493,1734142240594,-500.0,0.00021095,3]
[345296494,1734142240604,-500.0,0.00021095,3]
[345296495,1734142240614,-500.0,0.00021095,3]
[345296496,1734142240623,-500.0,0.00021095,3]
[345296497,1734142240631,-847.86,0.00021095,3]
[345296498,1734142240641,-847.86,0.00021095,3]
[345296499,1734142240650,-500.0,0.00021095,3]
[345296500,1734142240659,-500.0,0.00021095,3]
[345296501,1734142240668,-500.0,0.00021095,2]
[345296502,1734142240677,-500.0,0.00021095,2]
[345296503,1734142240688,-500.0,0.00021095,3]
[345296504,1734142240697,-500.0,0.00021095,3]
[345296505,1734142240707,-500.0,0.00021095,3]
[345296506,1734142240715,-500.81470305,0.00021095,3]
[345296507,1734142240725,-554.17,0.00021095,3]
[345296508,1734142240734,-554.17,0.00021095,3]
[345296509,1734142240743,-500.0,0.00021095,3]
[345296510,1734142240752,-500.0,0.00021095,3]
[345296511,1734142240761,-500.0,0.00021095,3]
[345296512,1734142240770,-500.0,0.00021095,3]
[345296513,1734142240779,-500.0,0.00021095,3]
[345296514,1734142240789,-500.0,0.00021095,3]
[345296515,1734142240798,-500.0,0.00021095,3]
[345296516,1734142240809,-500.0,0.00021095,3]
[345296517,1734142240818,-500.0,0.00021095,3]
[345296518,1734142240827,-500.0,0.00021095,3]
[345296519,1734142240836,-500.0,0.00021095,3]
[345296520,1734142240846,-500.0,0.00021095,3]
[345296521,1734142240855,-500.0,0.00021095,3]
[345296522,1734142240864,-500.0,0.00021095,3]
[345296523,1734142240875,-500.0,0.00021095,3]
[345296524,1734142240885,-500.0,0.00021095,3]
[345296525,1734142240893,-500.0,0.00021095,3]
[345296526,1734142240904,-500.0,0.00021095,3]
[345296527,1734142240914,-500.0,0.00021095,3]
[345296528,1734142240923,-500.0,0.00021095,3]
[345296529,1734142240933,-500.58424444,0.00021095,3]
[345296530,1734142240942,-500.0,0.00021095,3]
[345296531,1734142240952,-500.0,0.00021095,3]
[345296532,1734142240962,-500.0,0.00021095,3]
[345296533,1734142240971,-500.0,0.00021095,3]
[345296534,1734142240980,-500.0,0.00021095,3]
[345296535,1734142240990,-308.88084604,0.00021095,3]
[345296536,1734142240999,-568.38,0.00021095,3]
[345296537,1734142241009,-568.38,0.00021095,3]
[345296538,1734142241018,-500.0,0.00021095,3]
[345296539,1734142241028,-501.48593826,0.00021095,3]
[345296540,1734142241038,-500.0,0.00021095,3]
[345296541,1734142241047,-500.0,0.00021095,3]
[345296542,1734142241057,-507.19656014,0.00021095,3]
[345296543,1734142241068,-500.0,0.00021095,3]
[345296544,1734142241080,-416.33035234,0.00021095,3]
[345296545,1734142241090,-1791.19,0.00021095,3]
[345296546,1734142241099,-1791.19,0.00021095,3]
[345296547,1734142241108,-500.0,0.00021095,3]
[345296548,1734142241118,-500.0,0.00021095,3]
[345296549,1734142241128,-500.0,0.00021095,3]
[345296550,1734142241137,-240.79405367,0.00021095,3]
[345296551,1734142241146,-500.0,0.00021095,3]
[345296552,1734142241157,-500.0,0.00021095,3]
[345296553,1734142241166,-500.0,0.00021095,3]
[345296554,1734142241176,-500.0,0.00021095,3]
[345296555,1734142241185,-500.0,0.00021095,3]
[345296556,1734142241195,-500.0,0.00021095,3]
[345296557,1734142241204,-500.0,0.00021095,3]
[345296558,1734142241214,-500.0,0.00021095,3]
[345296559,1734142241223,-500.0,0.00021095,3]
[345296560,1734142241232,-500.76633109,0.00021095,3]
[345296561,1734142241242,-500.0,0.00021095,3]
[345296562,1734142241251,-500.0,0.00021095,3]
[345296563,1734142241261,-500.0,0.00021095,3]
[345296564,1734142241270,-500.0,0.00021095,3]
[345296565,1734142241279,-500.0,0.00021095,3]
[345296566,1734142241289,-881.68,0.00021095,3]
[345296567,1734142241299,-881.68,0.00021095,3]
[345296568,1734142241308,-500.0,0.00021095,3]
[345296569,1734142241318,-500.0,0.00021095,3]
[345296570,1734142241329,-500.0,0.00021095,3]
[345296571,1734142241339,-502.80215672,0.00021095,3]
[345296572,1734142241348,-500.0,0.00021095,3]
[345296573,1734142241358,-500.0,0.00021095,3]
[345296574,1734142241368,-2376.81,0.00021095,3]
[345296575,1734142241377,-2376.81,0.00021095,3]
[345296576,1734142241387,-505.57732741,0.00021095,3]
[345296577,1734142241396,-500.0,0.00021095,3]
[345296578,1734142241406,-500.0,0.00021095,3]
[345296579,1734142241415,-500.0,0.00021095,3]
[345296580,1734142241424,-501.26322188,0.00021095,3]
[345296581,1734142241434,-500.0,0.00021095,3]
[345296582,1734142241443,-500.0,0.00021095,3]
[345296583,1734142241452,-500.0,0.00021095,3]
[345296584,1734142241462,-503.37998406,0.00021095,3]
[345296585,1734142241471,-500.0,0.00021095,3]
[345296586,1734142241480,-1173.72,0.00021095,3]
[345296587,1734142241490,-500.95250923,0.00021095,3]
[345296588,1734142241499,-500.0,0.00021095,3]
[345296589,1734142241508,-1173.72,0.00021095,3]
[345296590,1734142241517,-500.0,0.00021095,3]
[345296591,1734142241527,-500.0,0.00021095,3]
[345296592,1734142241536,-504.48731002,0.00021095,3]
[345296593,1734142241545,-500.0,0.00021095,3]
[345296594,1734142241554,-500.0,0.00021095,3]
[345296595,1734142241563,-1471.6,0.00021095,3]
[345296596,1734142241575,-1471.6,0.00021095,3]
[345296597,1734142241585,-500.0,0.00021095,3]
[345296598,1734142241594,-500.0,0.00021095,3]
[345296599,1734142241604,-500.0,0.00021095,3]
[345296600,1734142241614,-500.0,0.00021095,3]
[345296601,1734142241623,-500.0,0.00021095,3]
[345296602,1734142241633,-500.0,0.00021095,3]
[345296603,1734142241643,-505.02070968,0.00021095,3]
[345296604,1734142241653,-500.0,0.00021095,3]
[345296605,1734142241663,-500.0,0.00021095,3]
[345296606,1734142241673,-501.07355473,0.00021095,3]
[345296607,1734142241684,-500.0,0.00021095,3]
[345296608,1734142241693,-500.0,0.00021095,3]
[345296609,1734142241702,-500.0,0.00021095,3]
[345296610,1734142241711,-500.0,0.00021095,3]
[345296611,1734142241721,-500.0,0.00021095,3]
[345296612,1734142241730,-500.0,0.00021095,3]
[345296613,1734142241739,-425.48003343,0.00021095,3]
[345296614,1734142241748,-500.0,0.00021095,3]
[345296615,1734142241758,-500.0,0.00021095,3]
[345296616,1734142241767,-938.33,0.00021095,3]
[345296617,1734142241776,-500.0,0.00021095,3]
[345296618,1734142241787,-500.0,0.00021095,3]
[345296619,1734142241795,-938.33,0.00021095,3]
[345296620,1734142241804,-500.0,0.00021095,3]
[345296621,1734142241814,-500.0,0.00021095,3]
[345296622,1734142241826,-501.03747323,0.00021095,3]
[345296623,1734142241835,-500.0,0.00021095,3]
[345296624,1734142241845,-500.0,0.00021095,3]
[345296625,1734142241855,-500.0,0.00021095,3]
[345296626,1734142241865,-500.0,0.00021095,3]
[345296627,1734142241874,-578.8732638,0.00021095,3]
[345296628,1734142241884,-500.0,0.00021095,3]
[345296629,1734142241893,-609.9,0.00021095,3]
[345296630,1734142241903,-501.93903976,0.00021095,3]
[345296631,1734142241912,-609.9,0.00021095,3]
[345296632,1734142241921,-552.93,0.00021095,3]
[345296633,1734142241930,-552.93,0.00021095,3]
[345296634,1734142241939,-500.0,0.00021095,3]
[345296635,1734142241949,-500.0,0.00021095,3]
[345296636,1734142241958,-500.0,0.00021095,3]
[345296637,1734142241967,-500.0,0.00021095,3]
[345296638,1734142241976,-507.75906712,0.00021095,3]
[345296639,1734142241986,-500.0,0.00021095,3]
[345296640,1734142241995,-500.0,0.00021095,3]
[345296641,1734142242004,-500.0,0.00021095,3]
[345296642,1734142242013,-226.7068679,0.00021095,3]
[345296643,1734142242023,-500.0,0.00021095,3]
[345296644,1734142242032,-500.0,0.00021095,3]
[345296645,1734142242041,-500.0,0.00021095,3]
[345296646,1734142242050,-504.54138304,0.00021095,3]
[345296647,1734142242060,-500.0,0.00021095,3]
[345296648,1734142242078,-2045.96,0.00021095,3]
[345296649,1734142242091,-500.0,0.00021095,3]
[345296650,1734142242100,-500.0,0.00021095,3]
[345296651,1734142242109,-2045.96,0.00021095,3]
[345296652,1734142242118,-502.61119986,0.00021095,3]
[345296653,1734142242130,-500.0,0.00021095,3]
[345296654,1734142242139,-502.27802874,0.00021095,3]
[345296655,1734142242148,-500.0,0.00021095,3]
[345296656,1734142242159,-500.0,0.00021095,3]
[345296657,1734142242169,-530.68,0.00021095,3]
[345296658,1734142242178,-530.68,0.00021095,3]
[345296659,1734142242188,-501.43596423,0.00021095,3]
[345296660,1734142242197,-500.90997365,0.00021095,3]
[345296661,1734142242206,-500.0,0.00021095,3]
[345296662,1734142242217,-500.0,0.00021095,3]
[345296663,1734142242226,-500.0,0.00021095,3]
[345296664,1734142242235,-500.0,0.00021095,3]
[345296665,1734142242244,-500.0,0.00021095,3]
[345296666,1734142242254,-500.0,0.00021095,3]
[345296667,1734142242264,-649.78,0.00021095,3]
[345296668,1734142242273,-500.0,0.00021095,3]
[345296669,1734142242283,-500.0,0.00021095,3]
[345296670,1734142242292,-649.78,0.00021095,3]
[345296671,1734142242302,-501.23035375,0.00021095,3]
[345296672,1734142242311,-500.0,0.00021095,3]
[345296673,1734142242321,-500.0,0.00021095,3]
[345296674,1734142242331,-500.0,0.00021095,3]
[345296675,1734142242341,-527.71242517,0.00021095,3]
[345296676,1734142242351,-500.0,0.00021095,3]
[345296677,1734142242360,-500.0,0.00021095,3]
[345296678,1734142242369,-500.0,0.00021095,3]
[345296679,1734142242379,-500.0,0.00021095,3]
[345296680,1734142242388,-500.0,0.00021095,3]
[345296681,1734142242398,-500.0,0.00021095,3]
[345296682,1734142242408,-500.0,0.00021095,3]
[345296683,1734142242417,-500.0,0.00021095,3]
[345296684,1734142242427,-500.0,0.00021095,3]
[345296685,1734142242436,-500.0,0.00021095,3]
[345296686,1734142242445,-512.91,0.00021095,3]
[345296687,1734142242455,-512.91,0.00021095,3]
[345296688,1734142242464,-503.60162937,0.00021095,3]
[345296689,1734142242473,-500.0,0.00021095,3]
[345296690,1734142242483,-500.0,0.00021095,3]
[345296691,1734142242492,-500.66828734,0.00021095,3]
[345296692,1734142242502,-500.0,0.00021095,3]